Cogmind - Beta 16.1 @@@ ROGUE MODE // 2026.02.15 @ 01:25:22 Player: TheSkyeDoctor Result: Destroyed by B-75 Beast with Heavy Plasma Cannon Performance ------------- Evolutions (1) 500 Regions Visited (5) 1000 Robots Destroyed (7) 35 Value Destroyed (240) 240 Prototype IDs (0) 0 Alien Tech Used (0) 0 Bonus (800) 800 TOTAL SCORE: 2575 Bonus ------- Pacifist 200 Met Imprinter 300 Was Imprinted 300 Cogmind --------- Core Integrity 0/400 Matter 280/300 Energy 62/100 System Corruption 0% Temperature Cool (17) Movement Core (150) Ox2 Location -6/Proximity Caves Parts ------- > --- POWER (1) -------- (None) > --- PROPULSION (2) --- (None) > --- UTILITY (4) ------ Small Storage Unit > --- WEAPON (2) ------- Makeshift Laser Makeshift Shrapnel Gun > --- INVENTORY (8) ---- High-capacity Matter Pod (200) Makeshift Targeting Computer Launcher Guidance Computer Hacking Drone Bay Phasing AFG Peak State ------------ > --- POWER ------------ Ion Engine > --- PROPULSION ------- Compact Wheel Compact Wheel > --- UTILITY ---------- Small Storage Unit Seismic Detector ECM Suite Shield Generator > --- WEAPON ----------- Assault Rifle CR-A16's Pointy Stick > --- INVENTORY -------- Light Ion Engine Wheel High-capacity Matter Pod Makeshift Targeting Computer Hacking Drone Bay Phasing AFG Makeshift Laser Makeshift Shrapnel Gun [Rating: 16] Favorites ----------- Power Ion Engine Engine Ion Engine Propulsion Compact Wheel Wheel Compact Wheel Utility Small Storage Unit Device Seismic Detector Storage Small Storage Unit Weapon Assault Rifle Energy Gun EM Pulse Gun Ballistic Gun Assault Rifle Launcher Grenade Launcher Piercing Weapon CR-A16's Pointy Stick Build | -11 -10 -9 -9 -7 -6 ------- Run | Yrd Mat Mat Min Zio Pro Slots Evolved 2 | . . 2 . . . Power . | . . . . . . Propulsion . | . . . . . . Utility 2 | . . 2 . . . Weapon . | . . . . . . Parts Attached 15 | 6 1 3 . 1 4 Power 2 | 1 . . . . 1 Engine 2 | 1 . . . . 1 Core . | . . . . . . Reactor . | . . . . . . Propulsion 3 | 2 . . . . 1 Treads . | . . . . . . Leg . | . . . . . . Wheel 3 | 2 . . . . 1 Hover . | . . . . . . Flight . | . . . . . . Utility 4 | 1 1 2 . . . Device 3 | . 1 2 . . . Storage 1 | 1 . . . . . Processor . | . . . . . . Hackware . | . . . . . . Protection . | . . . . . . Artifact . | . . . . . . Weapon 6 | 2 . 1 . 1 2 Energy Gun 2 | 1 . . . . 1 Energy Cannon . | . . . . . . Ballistic Gun 2 | 1 . . . . 1 Ballistic Cannon . | . . . . . . Launcher 1 | . . 1 . . . Special Weapon . | . . . . . . Impact Weapon . | . . . . . . Slashing Weapon . | . . . . . . Piercing Weapon 1 | . . . . 1 . Special Melee Weapon . | . . . . . . Unidentified Prototypes . | . . . . . . Parts Lost 11 | . . . 1 . 10 Power 2 | . . . . . 2 Propulsion 3 | . . . . . 3 Utility 3 | . . . . . 3 Weapon 3 | . . . 1 . 2 Highest Loss Streak 7 | . . . 1 . 7 To Critical Strikes . | . . . . . . Average Backups 5 | 2 1 3 3 7 7 Power . | . 1 1 1 1 . Propulsion . | . . 1 1 1 . Utility 2 | . . . . 2 4 Weapon 1 | . . 1 1 2 2 Tool/Special . | . . . . . . Unused Backups 5 | . . . . . 5 Power . | . . . . . . Propulsion . | . . . . . . Utility 5 | . . . . . 5 Weapon . | . . . . . . Tool/Special . | . . . . . . Average Slot Usage (%) 91 | . 91 79 94 96 86 Engine 10 | . 14 11 11 11 9 Wheel 22 | . 28 22 22 22 20 Device 29 | . 5 13 33 33 32 Storage 11 | . 14 11 11 11 11 Energy Gun 1 | . 14 5 . . . Ballistic Gun 8 | . 14 11 11 11 1 Piercing Weapon 6 | . . . . 7 11 Peak Build Rating 16 | 6 7 10 10 16 16 Average Rating 12 | 3 6 7 9 13 14 On Entrance 8 | . 6 7 10 9 16 Avg Prop Armor Cover (%) . | . . . . . . Naked Turns . | . . . . . . Heaviest Build 20 | 14 15 20 20 20 20 Greatest Support 32 | 32 32 32 32 32 32 Greatest Overweight (x) 3 | 1 . . . . 3 Average Overweight (x) . | . . . . . . Largest Inventory Capacity 8 | 8 8 8 8 8 8 Average Capacity 7 | 7 8 8 8 8 8 Most Carried 8 | 6 3 4 4 8 8 Average Carried 6 | 2 1 3 3 7 7 Final Capacity 8 | 8 8 8 8 8 8 Final Carried 8 | 1 3 3 4 8 5 Class Distribution -------------------- 100% | Mutant Dominant Class ---------------- Mutant | -10/Materials Mutant | -9/Materials Mutant | -9/Mines Mutant | -7/Zion Mutant | -6/Proximity Caves Resources | -11 -10 -9 -9 -7 -6 ----------- Run | Yrd Mat Mat Min Zio Pro Matter Collected 394 | 228 . 50 96 10 10 Remotely . | . . . . . . Salvage Created 243 | . . 234 . . 9 Parts 16 | . . 16 . . . Haulers Intercepted . | . . . . . . Recyclers Shooed . | . . . . . . Parts Field Recycled . | . . . . . . Retrieved Matter . | . . . . . . Parts Self-Destructed . | . . . . . . Prevented . | . . . . . . Parts Restored . | . . . . . . Kills | -11 -10 -9 -9 -7 -6 ------- Run | Yrd Mat Mat Min Zio Pro Combat Hostiles Destroyed 7 | . . 6 . . 1 Melee 1 | . . . . . 1 Guns 2 | . . 2 . . . AOE 4 | . . 4 . . . Classes Destroyed 3 | . . 2 . . 1 Drone 1 | . . . . . 1 Grunt 4 | . . 4 . . . Sentry 2 | . . 2 . . . Best Kill Streak 6 | . . 6 . . 1 Combat Bots Only 6 | . . 6 . . 1 Max Kills in Single Turn 2 | . . 2 . . 1 Gunslinging . | . . . . . . Exploded 2 | . . 2 . . . Melee 1 | . . . . . 1 Uniques/NPCs Destroyed . | . . . . . . Combat | -11 -10 -9 -9 -7 -6 -------- Run | Yrd Mat Mat Min Zio Pro Hostile Shots Fired 94 | . . 29 8 . 57 Missed 34 | . . 11 2 . 21 Hits 60 | . . 18 6 . 36 Projectile 60 | . . 18 6 . 36 Critical Strikes 1 | . . 1 . . . Damage Taken 1053 | . . 249 57 . 747 Core 426 | . . 53 10 . 363 Absorbed by Shields 65 | . . . 23 . 42 Core Remaining (%) 100 | 100 100 . . . . Volleys Fired 9 | . . 8 . . 1 Largest 2 | . . 2 . . 2 Hottest 74 | . . 50 . . 74 Shots Fired 15 | . . 13 . . 2 Gun 10 | . . 8 . . 2 Cannon . | . . . . . . Launcher 5 | . . 5 . . . Special . | . . . . . . Kinetic 9 | . . 8 . . 1 Thermal 1 | . . . . . 1 Explosive 5 | . . 5 . . . Electromagnetic . | . . . . . . Robot Hit Streak 8 | . . 5 . . 8 Robot Miss Streak 1 | . . 1 . . 1 Penetration Max . | . . . . . . Secondary Targets . | . . . . . . Shots Hit Robots 9 | . . 7 . . 2 Core Hits 13 | . . 11 . . 2 Critical Kills . | . . . . . . Critical Parts Destroyed . | . . . . . . Critical Strikes . | . . . . . . Melee Attacks 2 | . . . . . 2 Impact . | . . . . . . Slashing . | . . . . . . Piercing 2 | . . . . . 2 Sneak Attacks . | . . . . . . Combat Hostiles . | . . . . . . Follow-up Attacks . | . . . . . . Damage Inflicted 378 | . . 293 . . 85 Guns 92 | . . 47 . . 45 Cannons . | . . . . . . Explosions 246 | . . 246 . . . Melee 40 | . . . . . 40 Ramming . | . . . . . . Kinetic 92 | . . 47 . . 45 Thermal . | . . . . . . Explosive 246 | . . 246 . . . Electromagnetic . | . . . . . . Impact . | . . . . . . Slashing . | . . . . . . Piercing 40 | . . . . . 40 Highest Corruption . | . . . . . . Average Corruption . | . . . . . . Corruption Purged . | . . . . . . Corruption Blocked . | . . . . . . Overload Shots . | . . . . . . Overflow Damage . | . . . . . . Projectiles . | . . . . . . Explosions . | . . . . . . Melee . | . . . . . . Knockbacks . | . . . . . . Impact . | . . . . . . Kinetic . | . . . . . . Secondary . | . . . . . . Self-Inflicted Damage . | . . . . . . Shots . | . . . . . . Rammed . | . . . . . . Targets Rammed . | . . . . . . Kicked . | . . . . . . Crushed . | . . . . . . Highest Temperature 10 | . . 10 . . 5 Average Temperature 5 | . . 5 . . 5 Received Heat Transfer 342 | . . 102 . . 240 Siege Activations . | . . . . . . Martial Activations . | . . . . . . Shielding Activations . | . . . . . . Robots Disrupted . | . . . . . . Combat Hostiles . | . . . . . . Robots Corrupted . | . . . . . . Combat Hostiles . | . . . . . . Parts Fried . | . . . . . . Impact Corruptions . | . . . . . . Robots Melted . | . . . . . . Combat Hostiles . | . . . . . . Parts Melted . | . . . . . . Heat Transferred . | . . . . . . Parts Sabotaged . | . . . . . . Parts Stolen . | . . . . . . Parts Stripped . | . . . . . . Power Chain Reactions . | . . . . . . Alert | -11 -10 -9 -9 -7 -6 ------- Run | Yrd Mat Mat Min Zio Pro Maximum Alert Level . | . . . . . . Low Security (%) 100 | 100 100 100 100 . . Level 1 . | . . . . . . Level 2 . | . . . . . . Level 3 . | . . . . . . Level 4 . | . . . . . . Level 5 . | . . . . . . High Security . | . . . . . . Max Security . | . . . . . . Peak Influence 148 | . . 148 49 . . Initial 49 | . . . 49 . . Average 30 | . . 65 24 . . Influence Increases 173 | . . 168 . . 5 Destroy 0b10 Robot/C 120 | . . 120 . . . Destroy 0b10 Robot/NC 5 | . . . . . 5 Destroy Leader 30 | . . 30 . . . Destroy Structure 18 | . . 18 . . . Influence Decreases 173 | . . 40 128 . 5 Entered New Map 79 | . . . 79 . . Time Decay 84 | . . 40 39 . 5 Lost Part 10 | . . . 10 . . Squads Dispatched . | . . . . . . Investigation . | . . . . . . Extermination . | . . . . . . Reinforcement . | . . . . . . Assault . | . . . . . . Garrison . | . . . . . . Intercept . | . . . . . . Searches Triggered . | . . . . . . Construction Impeded . | . . . . . . Haulers Reinforced . | . . . . . . Active Scanning Responses . | . . . . . . Cargo Convoy Interrupts . | . . . . . . Stealth | -11 -10 -9 -9 -7 -6 --------- Run | Yrd Mat Mat Min Zio Pro Distress Signals 3 | . . 3 . . . Communications Jammed . | . . . . . . Distress Signals . | . . . . . . Times Spotted 35 | . 1 10 14 . 10 Peak Tracking Total 22 | . 1 9 22 . 4 Tactical Retreats 2 | . . . 1 . 1 ECM-based Alert Blocks 6 | . . . 2 . 4 Traps | -11 -10 -9 -9 -7 -6 ------- Run | Yrd Mat Mat Min Zio Pro Traps Triggered . | . . . . . . Indirectly . | . . . . . . Trap Hack Attempts . | . . . . . . Triggered . | . . . . . . Disarmed . | . . . . . . Reprogrammed . | . . . . . . Reused . | . . . . . . Traps Extracted . | . . . . . . Installed . | . . . . . . Triggered . | . . . . . . Machines | -11 -10 -9 -9 -7 -6 ---------- Run | Yrd Mat Mat Min Zio Pro Machines Disabled . | . . . . . . Max in Single Turn . | . . . . . . Machines Repaired . | . . . . . . Machines Dismantled . | . . . . . . Machines Sabotaged . | . . . . . . Overloaded Fab Kills . | . . . . . . Hacking | -11 -10 -9 -9 -7 -6 --------- Run | Yrd Mat Mat Min Zio Pro Machines Accessed . | . . . . . . Terminals . | . . . . . . Fabricators . | . . . . . . Repair Stations . | . . . . . . Recycling Units . | . . . . . . Scanalyzers . | . . . . . . Garrison Access . | . . . . . . Total Hacks . | . . . . . . Successful . | . . . . . . Failed . | . . . . . . Catastrophic . | . . . . . . Database Lockouts . | . . . . . . Manual . | . . . . . . Terminals . | . . . . . . Fabricators . | . . . . . . Repair Stations . | . . . . . . Recycling Units . | . . . . . . Scanalyzers . | . . . . . . Garrison Access . | . . . . . . Terminal Hacks . | . . . . . . Fabricator Hacks . | . . . . . . Repair Station Hacks . | . . . . . . Recycling Unit Hacks . | . . . . . . Scanalyzer . | . . . . . . Garrison Access Hacks . | . . . . . . Unauthorized Hacks . | . . . . . . Terminals . | . . . . . . Fabricators . | . . . . . . Repair Stations . | . . . . . . Recycling Units . | . . . . . . Scanalyzers . | . . . . . . Garrison Access . | . . . . . . Data Cores Recovered . | . . . . . . Used . | . . . . . . Hacking Detections . | . . . . . . Full Trace Events . | . . . . . . Feedback Events . | . . . . . . Feedback Blocked . | . . . . . . Robot Schematics Acquired . | . . . . . . Robots Built . | . . . . . . Authchips . | . . . . . . Time . | . . . . . . Total Robot Build Rating . | . . . . . . Part Schematics Acquired . | . . . . . . Parts Built . | . . . . . . Authchips . | . . . . . . Time . | . . . . . . Total Part Build Rating . | . . . . . . Part Studies Acquired . | . . . . . . Parts Repaired . | . . . . . . Time . | . . . . . . Parts Recycled . | . . . . . . Recycled Matter . | . . . . . . Retrieved Matter . | . . . . . . Retrieved Components . | . . . . . . Parts Scanalyzed . | . . . . . . Part Schematics Acquired . | . . . . . . Parts Damaged . | . . . . . . Bothacking | -11 -10 -9 -9 -7 -6 ------------ Run | Yrd Mat Mat Min Zio Pro Used RIF Installer . | . . . . . . Robots Hacked . | . . . . . . Non-combat . | . . . . . . Combat . | . . . . . . Robot Hacks Applied . | . . . . . . Relay Couplers Released . | . . . . . . Fabnet Peak Effective % . | . . . . . . Robots Rewired . | . . . . . . Allies Hacked . | . . . . . . Hacks Repelled . | . . . . . . Allies | -11 -10 -9 -9 -7 -6 -------- Run | Yrd Mat Mat Min Zio Pro Total Allies 9 | . . . . 9 . Largest Group 9 | . . . . 9 2 Highest-Rated Group 278 | . . . . 278 42 Highest-Rated Ally 41 | . . . . 41 28 Total Orders . | . . . . . . Ally Attacks 2 | . . . . . 2 Total Damage 23 | . . . . . 23 Kills . | . . . . . . Allies Corrupted . | . . . . . . Allies Melted . | . . . . . . Intel | -11 -10 -9 -9 -7 -6 ------- Run | Yrd Mat Mat Min Zio Pro Active Infowar (turns) 1545 | . 50 159 95 853 388 Seismic 1542 | . 50 159 95 853 385 ECM 1364 | . . 28 95 853 388 Robot Analysis Total . | . . . . . . Derelict Logs Recovered 2 | . . . 1 . 1 Drone Launches . | . . . . . . Drone Recoveries . | . . . . . . Exploration | -11 -10 -9 -9 -7 -6 ------------- Run | Yrd Mat Mat Min Zio Pro Turns Passed 1698 | 52 107 159 95 853 432 Spaces Moved 1587 | 46 96 133 93 834 385 Core 19 | 17 . . . . 2 Treads . | . . . . . . Legs . | . . . . . . Wheels 1568 | 29 96 133 93 834 383 Hover . | . . . . . . Flight . | . . . . . . Fastest Speed 50 | 50 100 100 100 100 90 Average Speed 97 | 88 100 100 100 100 92 Slowest Speed 200 | 100 100 100 100 100 200 Overloaded Moves . | . . . . . . Propulsion Burnouts . | . . . . . . Robots Hopped . | . . . . . . Potential Cave-ins . | . . . . . . Cave-ins Triggered . | . . . . . . Exploration Rate (%) 36 | 3 26 25 47 68 48 Regions Visited 5 Branch Regions 3 Pre-discovered Areas 2 | . . . 1 1 . Known Exits Taken . | . . . . . . Unknown Exits Taken 5 | 1 1 1 1 1 . Scrap Searched 4 | . . . . 3 1 Spaces Dug . | . . . . . . Terrain Destroyed 15 | . . 15 . . . Melee . | . . . . . . Projectile . | . . . . . . AOE 15 | . . 15 . . . Terrain Rammed . | . . . . . . Walls Destroyed . | . . . . . . Machines Disabled . | . . . . . . Actions | -11 -10 -9 -9 -7 -6 --------- Run | Yrd Mat Mat Min Zio Pro Total 1713 | 57 107 145 95 853 456 Wait 85 | . 8 . 2 12 63 Move 1582 | 45 95 132 92 833 385 Hop . | . . . . . . Pick Up 19 | 6 3 2 1 6 1 Fast Attach 1 | 1 . . . . . Attach 13 | 5 1 2 . 1 4 Detach . | . . . . . . Swap 1 | . . 1 . . . Drop 1 | . . . . 1 . Fire 9 | . . 8 . . 1 Melee 2 | . . . . . 2 Ram . | . . . . . . Kick . | . . . . . . Crush . | . . . . . . Escape Stasis . | . . . . . . Rewire . | . . . . . . Trap . | . . . . . . Miscellaneous . | . . . . . . Route ------- -11/Scrapyard -10/Materials -9/Materials -9/Mines -7/Zion -6/Proximity Caves History --------- Turn | Location | Event 27 | -11/Scrapyard | Discovered new exit (range 16) 53 | -11/Scrapyard | Entered Materials 146 | -10/Materials | Discovered new exit (range 12) 160 | -10/Materials | Entered another Materials area 160 | -9/Materials | Evolved 2 slots: Utility x2 268 | -9/Materials | Discovered new exit (range 16) 319 | -9/Materials | Entered Mines 321 | -9/Mines | Met a Derelict bent on vengeance 324 | -9/Mines | Build established: Mutant 343 | -9/Mines | Assembled infested the area 348 | -9/Mines | Assisted by a Guerilla fighting off Assembled 364 | -9/Mines | Learned location of Zion (-7) 410 | -9/Mines | A Derelict revealed a hidden shortcut to a safe place 414 | -9/Mines | Entered Zion 465 | -7/Zion | Given the Hacking Drone Bay 465 | -7/Zion | Found Prototype Device 537 | -7/Zion | Received a hallucinogenic algorithm 647 | -7/Zion | Learned Factory emergency access door positions 658 | -7/Zion | Found CR-A16's Pointy Stick 842 | -7/Zion | Learned location of Data Miner (-6) 887 | -7/Zion | Gained Derelict followers 919 | -7/Zion | Met Imprinter 940 | -7/Zion | Imprinted 942 | -7/Zion | Declared Zion's savior 1191 | -7/Zion | Found Prototype Device 1259 | -7/Zion | Discovered new exit (range 8) 1267 | -7/Zion | Entered Proximity Caves 1267 | -6/Proximity Caves | Accompanied by 2 allies 1330 | -6/Proximity Caves | Lost 3 parts (1p1n1w) 1555 | -6/Proximity Caves | Spotter reported a threat 1610 | -6/Proximity Caves | Spotter reported a threat 1618 | -6/Proximity Caves | Learned 4 Factory zone layouts 1645 | -6/Proximity Caves | Spotted B-75 Beast 1655 | -6/Proximity Caves | Core integrity fell below 50% 1679 | -6/Proximity Caves | Core integrity fell below 20% 1699 | -6/Proximity Caves | Destroyed by B-75 Beast with Heavy Plasma Cannon Last Messages --------------- Acquired Launcher Guidance Computer. N-01 Spotter sends a signal. ALERT: Unidentified potential threat approaching Complex 0b10. N-01 Spotter destroyed. N-01 Spotter is scanning... N-01 Spotter sends a signal. ALERT: Unidentified potential threat approaching Complex 0b10. Acquired derelict log, extracted data. Data stored: Factory zone layouts (x4). Wheel destroyed. Lgt. Ion Engine destroyed. Shield Generator destroyed. Com. Wheel destroyed. Knocked back. ECM Suite destroyed. CR-A16's Pointy Stick destroyed. Knocked back. Seismic Detector destroyed. Map ----- +----------------------------------------------------+ | #????????????????????????????????? | | #????????????????????????????????? | | ###### #???????????????????????????????? | | #??????????????????????????????????????????? | | ###?????????????????? ????????????????????? | | #?????????????????? ???????????????????? | | #?????????????????? ???????????????????? | | ##" #?????????????????? ????????????????????? | | #"" #?????????????##??? ????????????????????? | | """ #?????????????# ### ????????????????????? | | " #????????????## ????????????????????? | | #????????????# ????????????????????? | | """" #????????????# ;????????????????????? | | """" #????????????# ##???????????????????? | | " #?????? #???## ????????????????????? | | " ##### #??## ????????????????????? | | "### #?## ?????????????????????? | | "#### ## ?????????????????????? | | ### #?????????????????????? | | #??? ## ????# #?????????????????????? | | #????##??? ????#BB#?????????????????????? | | #####????????????#BB#?????????????????????? | | #???????????## ##????????????????????? | | ########????#; ;#????????????????????? | | ## ##???#;% ;#????????????????????? | | ##### ###### ##??##@%##?###????????????????? | | ##???# ###### #### % #### ####????????????? | | #???# ## #????????????? | | ##??# ### ### ## ##???????????? | | ###?# ???# #?# ###### ##??????????? | | #??# ? ????# ### gg##???# #??????????? | | ?????? ##?????# ##### ##??????????? | | ????# #???????# ### ##???????????? | | ????## #????????# #?## #????????????? | | ?????##?????????# #?## #????????????? | | ????????????????# ##??##;##########????????????? | | ????????????????#####?????##?????????????????????? | | ?????????????????????????????????????????????????? | | ?????????????????????????????????????????????????? | | ?????????????????????????????????????????????????? | | ?????????????????????????????????????????????????? | | ?????????????????????????????????????????????????? | | ?????????????????????????????????????????????????? | | ?????????????????????????????????????????????????? | | ?????????????????????????????????????????????????? | | ?????????????????????????????????????????????????? | | ?????????????????????????????????????????????????? | | ?????????????????????????????????????????????????? | | ?????????????????????????????????????????????????? | | ?????????????????????????????????????????????????? | +----------------------------------------------------+ Best States ------------- Heat Dissipation 28 Energy Generation 10 Energy Capacity 250 Matter Stores 300 Matter Capacity 300 Sight Range 16 Terrain Scan Density 10 ECM Strength 1 Evasion (%) 50 Item Schematics ----------------- None Robot Schematics ------------------ None Fabricated ------------ Nothing Repaired ---------- Nothing Studied --------- None Alien Tech Used ----------------- None Achievements -------------- None Challenges ------------ None Game ------ Seed KineticPortableBiocell Manual? 0 Play Time 00:13:54 Cumulative 23.9 hours Start 2026.02.15 @ 01:11:19 End 2026.02.15 @ 01:25:22 Sessions 1 Manual Loads 0 Difficulty Rogue Special Mode None Game No. 59 Rogue 59 Adventurer 0 Explorer 0 Win Type - Total 0 Types 0/0/0/0/0/0/0/0/0/0 Lore% 23 Gallery% 26 Achievement% 21 Wizard Run 0 Options --------- Layout 1 ASCII 0 Keyboard 0 Movement Mouse Keybinds 0 Fullscreen 1 Font 24/Smallcaps Map View 50x35 Zoom Use 0% Tactical HUD 0 Map Filters NONE Filters NONE Steam 1 RUN: 44e2d888-8dd0-4b4d-87a7-cf7222b59460